[Event "71st RUS-ch Higher League 2018"]
[Site "Yaroslavl"]
[Date "2018.07.02"]
[Round "6"]
[White "Usmanov, Vasily"]
[Black "Volkov, Sergey"]
[Result "1/2-1/2"]
[ECO "D70"]
[WhiteElo "2477"]
[BlackElo "2580"]
[Annotator "ChessBase"]
[PlyCount "225"]
[EventDate "2018.06.26"]
[EventType "swiss"]
[EventCountry "RUS"]
[SourceTitle "playchess.com"]
[Source "ChessBase"]
[SourceQuality "1"]
[TimeControl "40/5400+30:1800+30"]

1. d4 {[%emt 0:00:00]} d5 {[%emt 0:00:00]} 2. c4 {[%emt 0:00:00]} c6 {[%emt 0:00:00]} 3. Nf3 {[%emt 0:00:00]} Nf6 {[%emt 0:00:00]} 4. Nbd2 {[%emt 0:00:00]} Bf5 {[%emt 0:01:37]} 5. Nh4 {[%emt 0:00:00]} Be4 {[%emt 0:01:25]} 6. e3 {[%emt 0:00:27]} e6 {[%emt 0:01:17]} 7. Be2 {[%emt 0:00:16]} Nbd7 {[%emt 0:01:01]} 8. O-O {[%emt 0:00:16]} Bd6 {[%emt 0:01:11]} 9. g3 {[%emt 0:00:20]} g5 {[%emt 0:01:00]} 10. Nhf3 {[%emt 0:00:26]} g4 {[%emt 0:03:06]} 11. Nh4 {[%emt 0:12:41]} h5 {[%emt 0:01:08]} 12. b3 {[%emt 0:08:48]} Bh7 {[%emt 0:03:39]} 13. Bb2 {[%emt 0:00:39]} Qe7 {[%emt 0:01:22]} 14. f4 {[%emt 0:01:11]} gxf3 {[%emt 0:04:21]} 15. Bxf3 {[%emt 0:01:04]} O-O-O {[%emt 0:00:40]} 16. Qe2 {[%emt 0:02:41]} e5 {[%emt 0:01:40]} 17. cxd5 {[%emt 0:01:27]} cxd5 {[%emt 0:02:17]} 18. e4 {[%emt 0:04:00]} Kb8 {[%emt 0:06:25]} 19. exd5 {[%emt 0:04:45]} e4 {[%emt 0:00:27]} 20. Bg2 {[%emt 0:05:08]} Ng4 {[%emt 0:08:03]} 21. Nf5 {[%emt 0:02:48]} Bxf5 {[%emt 0:00:19]} 22. Rxf5 {[%emt 0:00:02]} Nh6 {[%emt 0:02:39]} 23. Rxh5 {[%emt 0:02:09]} f5 {[%emt 0:02:04]} 24. Nc4 {[%emt 0:01:42]} Nf6 {[%emt 0:00:13]} 25. Rxh6 {[%emt 0:11:24]} Rxh6 {[%emt 0:00:09]} 26. Bc1 {[%emt 0:00:27]} Rh7 {[%emt 0:05:11]} 27. Nxd6 {[%emt 0:01:26]} Rxd6 {[%emt 0:00:05]} 28. Ba3 {[%emt 0:01:07]} Qd8 {[%emt 0:03:45]} 29. Bxd6+ {[%emt 0:00:06]} Qxd6 {[%emt 0:00:04]} 30. Qf2 {[%emt 0:00:31]} Rh5 {[%emt 0:01:33]} 31. Rc1 {[%emt 0:03:47]} Nxd5 {[%emt 0:01:47]} 32. Qc2 {[%emt 0:00:16]} Rh8 {[%emt 0:02:27]} 33. Qc5 {[%emt 0:01:55]} Qh6 {[%emt 0:01:33]} 34. h3 {[%emt 0:04:25]} Rd8 {[%emt 0:11:36]} 35. Kh2 {[%emt 0:02:23]} a6 {[%emt 0:01:23]} 36. Re1 {[%emt 0:03:21]} Qd2 {[%emt 0:02:17]} 37. Qc1 {[%emt 0:00:12]} Qxa2 {[%emt 0:00:47]} 38. Qg5 {[%emt 0:00:27]} Qa5 {[%emt 0:01:44]} 39. b4 {[%emt 0:00:37]} Nxb4 {[%emt 0:02:42]} 40. Rxe4 {[%emt 0:00:00]} Nc6 {[%emt 0:00:00]} 41. Rf4 {[%emt 0:05:07]} Nxd4 {[%emt 0:01:04]} 42. Qf6 {[%emt 0:00:23]} Nc6 {[%emt 0:03:18]} 43. Rxf5 {[%emt 0:01:27]} Qc7 {[%emt 0:03:20]} 44. h4 {[%emt 0:02:50]} Rd6 {[%emt 0:01:51]} 45. Qh8+ {[%emt 0:01:01]} Ka7 {[%emt 0:01:17]} 46. Rf8 {[%emt 0:01:25]} Nd8 {[%emt 0:00:37]} 47. Qe5 {[%emt 0:02:08]} Qb6 {[%emt 0:00:23]} 48. Re8 {[%emt 0:03:00]} a5 {[%emt 0:01:58]} 49. Qe1 {[%emt 0:03:29]} Nc6 {[%emt 0:04:32]} 50. h5 {[%emt 0:01:59]} a4 {[%emt 0:02:07]} 51. g4 {[%emt 0:01:15]} Qc5 {[%emt 0:06:42]} 52. Qe3 {[%emt 0:02:02]} Qxe3 {[%emt 0:09:00]} 53. Rxe3 {[%emt 0:00:23]} Nd4 {[%emt 0:00:06]} 54. g5 {[%emt 0:02:32]} Rd8 {[%emt 0:20:01]} 55. h6 {[%emt 0:03:39]} Rh8 {[%emt 0:01:48]} 56. Bh3 {[%emt 0:06:25]} b5 {[%emt 0:00:08]} 57. Kg2 {[%emt 0:08:04]} Kb6 {[%emt 0:01:04]} 58. Rg3 {[%emt 0:04:25]} Nc6 {[%emt 0:00:55]} 59. Bf5 {[%emt 0:00:26]} Ne7 {[%emt 0:01:02]} 60. Bb1 {[%emt 0:00:10]} b4 {[%emt 0:00:30]} 61. h7 {[%emt 0:01:12]} a3 {[%emt 0:03:48]} 62. g6 {[%emt 0:02:59]} Kc5 {[%emt 0:00:29]} 63. Rg5+ {[%emt 0:00:13]} Kb6 {[%emt 0:01:29]} 64. Ba2 {[%emt 0:02:19]} Kc7 {[%emt 0:00:36]} 65. Bf7 {[%emt 0:02:40]} a2 {[%emt 0:00:42]} 66. Ra5 {[%emt 0:00:52]} b3 {[%emt 0:00:02]} 67. Bxb3 {[%emt 0:01:21]} Nxg6 {[%emt 0:00:04]} 68. Rxa2 {[%emt 0:00:21]} Nf8 {[%emt 0:00:19]} 69. Bg8 {[%emt 0:00:58]} Nxh7 {[%emt 0:00:07]} 70. Bxh7 {[%emt 0:00:02]} Kd6 {[%emt 0:00:14]} 71. Bf5 {[%emt 0:00:10]} Ke5 {[%emt 0:00:16]} 72. Bg4 {[%emt 0:00:15]} Rg8 {[%emt 0:00:18]} 73. Kf3 {[%emt 0:00:02]} Rf8+ {[%emt 0:00:06]} 74. Ke3 {[%emt 0:00:01]} Rf1 {[%emt 0:00:12]} 75. Ra5+ {[%emt 0:00:04]} Kd6 {[%emt 0:00:08]} 76. Bf5 {[%emt 0:00:14]} Re1+ {[%emt 0:00:06]} 77. Kd4 {[%emt 0:00:03]} Rd1+ {[%emt 0:00:05]} 78. Bd3 {[%emt 0:00:02]} Rd2 {[%emt 0:00:28]} 79. Ra6+ {[%emt 0:00:06]} Kd7 {[%emt 0:00:09]} 80. Kc4 {[%emt 0:00:44]} Ke7 {[%emt 0:00:04]} 81. Be4 {[%emt 0:00:04]} Rd6 {[%emt 0:00:06]} 82. Ra1 {[%emt 0:00:37]} Rd2 {[%emt 0:00:14]} 83. Kc5 {[%emt 0:00:15]} Ke6 {[%emt 0:00:38]} 84. Re1 {[%emt 0:00:02]} Kf6 {[%emt 0:00:17]} 85. Re3 {[%emt 0:00:39]} Rd1 {[%emt 0:00:22]} 86. Bd3 {[%emt 0:00:09]} Ra1 {[%emt 0:00:24]} 87. Kd4 {[%emt 0:00:59]} Rd1 {[%emt 0:00:29]} 88. Kd5 {[%emt 0:00:11]} Rd2 {[%emt 0:00:14]} 89. Rf3+ {[%emt 0:00:08]} Ke7 {[%emt 0:00:13]} 90. Ke5 {[%emt 0:00:07]} Rd1 {[%emt 0:00:17]} 91. Rh3 {[%emt 0:00:15]} Re1+ {[%emt 0:00:04]} 92. Be4 {[%emt 0:00:02]} Re2 {[%emt 0:00:09]} 93. Rh7+ {[%emt 0:00:01]} Ke8 {[%emt 0:00:08]} 94. Kf5 {[%emt 0:00:26]} Kd8 {[%emt 0:00:04]} 95. Ke5 {[%emt 0:01:37]} Ke8 {[%emt 0:00:08]} 96. Kd5 {[%emt 0:00:01]} Kf8 {[%emt 0:00:08]} 97. Bf5 {[%emt 0:00:02]} Re7 {[%emt 0:00:08]} 98. Rh3 {[%emt 0:00:39]} Re1 {[%emt 0:00:51]} 99. Be6 {[%emt 0:00:24]} Ke7 {[%emt 0:00:21]} 100. Rh7+ {[%emt 0:00:14]} Kf6 {[%emt 0:00:17]} 101. Rf7+ {[%emt 0:00:05]} Kg5 {[%emt 0:01:06]} 102. Bf5 {[%emt 0:00:27]} Ra1 {[%emt 0:00:45]} 103. Be4 {[%emt 0:00:13]} Ra5+ {[%emt 0:00:23]} 104. Kd4 {[%emt 0:00:06]} Ra4+ {[%emt 0:00:09]} 105. Ke5 {[%emt 0:00:01]} Ra5+ {[%emt 0:00:10]} 106. Bd5 {[%emt 0:00:03]} Rb5 {[%emt 0:00:08]} 107. Rg7+ {[%emt 0:00:02]} Kh5 {[%emt 0:00:13]} 108. Rg1 {[%emt 0:00:45]} Ra5 {[%emt 0:00:07]} 109. Ke4 {[%emt 0:00:03]} Kh6 {[%emt 0:00:09]} 110. Be6 {[%emt 0:00:01]} Rg5 {[%emt 0:00:08]} 111. Rh1+ {[%emt 0:00:03]} Rh5 {[%emt 0:00:53]} 112. Bh3 {[%emt 0:01:05]} Kg7 {[%emt 0:00:28]} 113. Bg2 {[%emt 0:00:22]} 1/2-1/2

[Event "71st RUS-ch Higher League 2018"]
[Site "Yaroslavl"]
[Date "2018.07.02"]
[Round "6"]
[White "Sek, Konstantin"]
[Black "Rodin, Dmitrij"]
[Result "1/2-1/2"]
[ECO "B43"]
[WhiteElo "2476"]
[BlackElo "2402"]
[Annotator "ChessBase"]
[PlyCount "82"]
[EventDate "2018.06.26"]
[EventType "swiss"]
[EventCountry "RUS"]
[SourceTitle "playchess.com"]
[Source "ChessBase"]
[SourceQuality "1"]
[TimeControl "40/5400+30:1800+30"]

1. e4 {[%emt 0:00:00]} c5 {[%emt 0:00:00]} 2. Nf3 {[%emt 0:00:08]} e6 {[%emt 0:00:00]} 3. d4 {[%emt 0:00:08]} cxd4 {[%emt 0:00:00]} 4. Nxd4 {[%emt 0:00:03]} a6 {[%emt 0:00:00]} 5. Nc3 {[%emt 0:00:24]} Qc7 {[%emt 0:00:36]} 6. Bd3 {[%emt 0:00:14]} Nf6 {[%emt 0:13:37]} 7. Qe2 {[%emt 0:00:37]} d6 {[%emt 0:00:18]} 8. f4 {[%emt 0:00:11]} Nbd7 {[%emt 0:00:36]} 9. Bd2 {[%emt 0:01:58]} Be7 {[%emt 0:01:43]} 10. g4 {[%emt 0:02:46]} Nc5 {[%emt 0:04:34]} 11. g5 {[%emt 0:00:44]} Nfd7 {[%emt 0:00:06]} 12. O-O {[%emt 0:06:14]} g6 {[%emt 0:16:54]} 13. f5 {[%emt 0:13:44]} Ne5 {[%emt 0:02:08]} 14. fxe6 {[%emt 0:05:57]} fxe6 {[%emt 0:01:37]} 15. Nf3 {[%emt 0:09:15]} O-O {[%emt 0:08:12]} 16. Nxe5 {[%emt 0:00:13]} dxe5 {[%emt 0:00:23]} 17. Rxf8+ {[%emt 0:02:26]} Bxf8 {[%emt 0:00:02]} 18. Rf1 {[%emt 0:00:43]} Nxd3 {[%emt 0:03:52]} 19. Qxd3 {[%emt 0:02:50]} Bd7 {[%emt 0:00:35]} 20. Be3 {[%emt 0:04:33]} Be8 {[%emt 0:02:51]} 21. Qe2 {[%emt 0:10:13]} Be7 {[%emt 0:08:27]} 22. Qg4 {[%emt 0:02:23]} Bd7 {[%emt 0:02:08]} 23. Rd1 {[%emt 0:07:54]} Rf8 {[%emt 0:05:02]} 24. Rd3 {[%emt 0:03:32]} b5 {[%emt 0:04:15]} 25. Nd1 {[%emt 0:02:00]} b4 {[%emt 0:08:19]} 26. Nf2 {[%emt 0:00:33]} Bc8 {[%emt 0:01:18]} 27. Rd2 {[%emt 0:02:43]} a5 {[%emt 0:05:38]} 28. Qe2 {[%emt 0:00:37]} Qc6 {[%emt 0:00:22]} 29. h3 {[%emt 0:11:46]} a4 {[%emt 0:00:42]} 30. Qg4 {[%emt 0:02:47]} a3 {[%emt 0:01:40]} 31. bxa3 {[%emt 0:01:45]} bxa3 {[%emt 0:00:49]} 32. Qg3 {[%emt 0:00:11]} Qc3 {[%emt 0:04:58]} 33. Ng4 {[%emt 0:00:37]} Bxg5 {[%emt 0:01:55]} 34. Rd3 {[%emt 0:01:47]} Bxe3+ {[%emt 0:00:17]} 35. Rxe3 {[%emt 0:01:25]} Qxc2 {[%emt 0:01:21]} 36. Qxe5 {[%emt 0:00:41]} Qd1+ {[%emt 0:00:13]} 37. Kg2 {[%emt 0:00:06]} Qd2+ {[%emt 0:00:05]} 38. Kg3 {[%emt 0:00:18]} h5 {[%emt 0:01:18]} 39. Qg5 {[%emt 0:00:24]} hxg4 {[%emt 0:01:20]} 40. Qxg6+ {[%emt 0:00:00]} Kh8 {[%emt 0:00:00]} 41. Qh6+ {[%emt 0:00:26]} Kg8 {[%emt 0:00:07]} 1/2-1/2

[Event "71st RUS-ch Higher League 2018"]
[Site "Yaroslavl"]
[Date "2018.07.02"]
[Round "6"]
[White "Fakhrutdinov, Timur"]
[Black "Moiseenko, Vadim"]
[Result "1-0"]
[ECO "C58"]
[WhiteElo "2460"]
[BlackElo "2517"]
[Annotator "ChessBase"]
[PlyCount "177"]
[EventDate "2018.06.26"]
[EventType "swiss"]
[EventCountry "RUS"]
[SourceTitle "playchess.com"]
[Source "ChessBase"]
[SourceQuality "1"]
[TimeControl "40/5400+30:1800+30"]

1. e4 {[%emt 0:00:00]} e5 {[%emt 0:01:25]} 2. Nf3 {[%emt 0:00:00]} Nc6 {[%emt 0:00:03]} 3. Bc4 {[%emt 0:00:00]} Nf6 {[%emt 0:00:05]} 4. Ng5 {[%emt 0:00:14]} d5 {[%emt 0:00:04]} 5. exd5 {[%emt 0:00:06]} Na5 {[%emt 0:00:02]} 6. Bb5+ {[%emt 0:00:18]} c6 {[%emt 0:00:04]} 7. dxc6 {[%emt 0:00:05]} bxc6 {[%emt 0:00:04]} 8. Bd3 {[%emt 0:00:14]} Ng4 {[%emt 0:01:08]} 9. Ne4 {[%emt 0:02:30]} f5 {[%emt 0:00:06]} 10. Be2 {[%emt 0:00:41]} h5 {[%emt 0:00:05]} 11. h3 {[%emt 0:01:14]} fxe4 {[%emt 0:00:04]} 12. hxg4 {[%emt 0:00:11]} Bc5 {[%emt 0:00:04]} 13. b4 {[%emt 0:02:09]} Bxb4 {[%emt 0:07:17]} 14. c3 {[%emt 0:41:20]} Bc5 {[%emt 0:00:13]} 15. Ba3 {[%emt 0:01:28]} Qb6 {[%emt 0:04:23]} 16. Bxc5 {[%emt 0:01:43]} Qxc5 {[%emt 0:00:05]} 17. gxh5 {[%emt 0:01:32]} O-O {[%emt 0:02:57]} 18. O-O {[%emt 0:01:00]} Bf5 {[%emt 0:00:29]} 19. Qa4 {[%emt 0:08:24]} Rab8 {[%emt 0:02:18]} 20. Na3 {[%emt 0:08:04]} Rb2 {[%emt 0:00:54]} 21. Nc4 {[%emt 0:04:12]} Nxc4 {[%emt 0:01:16]} 22. Qxc4+ {[%emt 0:00:26]} Qxc4 {[%emt 0:03:30]} 23. Bxc4+ {[%emt 0:00:14]} Kh7 {[%emt 0:00:03]} 24. f3 {[%emt 0:13:38]} Rd8 {[%emt 0:00:10]} 25. fxe4 {[%emt 0:02:39]} Bxe4 {[%emt 0:00:04]} 26. Rfe1 {[%emt 0:00:56]} Bd5 {[%emt 0:05:32]} 27. Bf1 {[%emt 0:03:28]} Bxa2 {[%emt 0:01:56]} 28. d3 {[%emt 0:00:47]} Rd5 {[%emt 0:03:27]} 29. Re2 {[%emt 0:01:07]} Rxe2 {[%emt 0:00:21]} 30. Bxe2 {[%emt 0:00:05]} Ra5 {[%emt 0:00:51]} 31. d4 {[%emt 0:01:18]} exd4 {[%emt 0:00:15]} 32. cxd4 {[%emt 0:00:37]} Ra4 {[%emt 0:00:05]} 33. Bd1 {[%emt 0:01:37]} Ra3 {[%emt 0:00:14]} 34. Bc2+ {[%emt 0:01:24]} Kh6 {[%emt 0:00:04]} 35. Bb1 {[%emt 0:00:23]} Bxb1 {[%emt 0:01:30]} 36. Rxa3 {[%emt 0:00:05]} Kxh5 {[%emt 0:00:08]} 37. Rxa7 {[%emt 0:00:21]} g6 {[%emt 0:02:28]} 38. Kf2 {[%emt 0:02:50]} Be4 {[%emt 0:00:46]} 39. Kg3 {[%emt 0:00:41]} g5 {[%emt 0:02:46]} 40. Re7 {[%emt 0:00:00]} Bd5 {[%emt 0:00:00]} 41. Re5 {[%emt 0:03:34]} Bb3 {[%emt 0:00:34]} 42. Kh3 {[%emt 0:04:00]} Bd5 {[%emt 0:01:36]} 43. g4+ {[%emt 0:10:54]} Kg6 {[%emt 0:00:04]} 44. Kg3 {[%emt 0:00:05]} Kf6 {[%emt 0:00:18]} 45. Rf5+ {[%emt 0:02:09]} Kg6 {[%emt 0:00:06]} 46. Rf8 {[%emt 0:00:32]} Kg7 {[%emt 0:01:40]} 47. Rd8 {[%emt 0:06:27]} Kf7 {[%emt 0:00:07]} 48. Rd6 {[%emt 0:00:17]} Be4 {[%emt 0:00:02]} 49. Kf2 {[%emt 0:00:55]} Ke7 {[%emt 0:00:08]} 50. Rh6 {[%emt 0:00:09]} Kf7 {[%emt 0:00:03]} 51. Ke3 {[%emt 0:00:29]} Bd5 {[%emt 0:00:04]} 52. Rd6 {[%emt 0:04:48]} Bg2 {[%emt 0:00:06]} 53. Ke2 {[%emt 0:01:17]} Be4 {[%emt 0:00:12]} 54. Rh6 {[%emt 0:01:14]} Bd5 {[%emt 0:00:21]} 55. Ke3 {[%emt 0:00:30]} Bg2 {[%emt 0:00:16]} 56. Rh2 {[%emt 0:00:56]} Bd5 {[%emt 0:00:03]} 57. Kd3 {[%emt 0:00:43]} Kg7 {[%emt 0:00:52]} 58. Rb2 {[%emt 0:01:19]} Bf3 {[%emt 0:00:31]} 59. Ke3 {[%emt 0:00:20]} Bd5 {[%emt 0:00:06]} 60. Rc2 {[%emt 0:00:39]} Kg6 {[%emt 0:00:32]} 61. Rc5 {[%emt 0:00:15]} Bg2 {[%emt 0:00:04]} 62. Re5 {[%emt 0:00:42]} Kf6 {[%emt 0:00:41]} 63. Rf5+ {[%emt 0:00:34]} Kg6 {[%emt 0:00:04]} 64. Rf8 {[%emt 0:00:27]} Bd5 {[%emt 0:00:52]} 65. Rd8 {[%emt 0:00:11]} Bg2 {[%emt 0:00:04]} 66. Rd7 {[%emt 0:00:57]} Kf6 {[%emt 0:00:16]} 67. Rd6+ {[%emt 0:00:29]} Kf7 {[%emt 0:00:05]} 68. Rh6 {[%emt 0:00:21]} Kg7 {[%emt 0:00:18]} 69. Rh2 {[%emt 0:00:26]} Bd5 {[%emt 0:00:05]} 70. Rf2 {[%emt 0:00:25]} Kg6 {[%emt 0:00:07]} 71. Kd3 {[%emt 0:00:21]} Be6 {[%emt 0:00:07]} 72. Rg2 {[%emt 0:00:12]} Bd5 {[%emt 0:00:12]} 73. Rg1 {[%emt 0:00:49]} Kf6 {[%emt 0:01:33]} 74. Rf1+ {[%emt 0:00:09]} Kg6 {[%emt 0:00:03]} 75. Kc3 {[%emt 0:00:08]} Bg2 {[%emt 0:01:20]} 76. Rg1 {[%emt 0:00:10]} Bf3 {[%emt 0:00:15]} 77. Kb4 {[%emt 0:00:10]} Kg7 {[%emt 0:00:14]} 78. Kc5 {[%emt 0:00:26]} Kg6 {[%emt 0:00:32]} 79. Kd6 {[%emt 0:00:08]} Bd5 {[%emt 0:01:03]} 80. Ke5 {[%emt 0:01:34]} Bf3 {[%emt 0:00:32]} 81. Rg3 {[%emt 0:00:53]} Bd5 {[%emt 0:00:11]} 82. Rc3 {[%emt 0:00:27]} Bg2 {[%emt 0:00:05]} 83. Kd6 {[%emt 0:00:55]} Kf6 {[%emt 0:00:27]} 84. Rxc6 {[%emt 0:00:55]} Bf3 {[%emt 0:00:04]} 85. Kc7+ {[%emt 0:00:33]} Kf7 {[%emt 0:00:05]} 86. Rc1 {[%emt 0:00:21]} Ke6 {[%emt 0:00:07]} 87. Rc5 {[%emt 0:00:22]} Bxg4 {[%emt 0:00:25]} 88. Rxg5 {[%emt 0:00:05]} Bf3 {[%emt 0:00:02]} 89. Re5+ {[%emt 0:00:11] Kd5} 1-0

[Event "71st RUS-ch Higher League 2018"]
[Site "Yaroslavl"]
[Date "2018.07.02"]
[Round "6"]
[White "Bimiev, Ahmad"]
[Black "Iskusnyh, Sergei"]
[Result "0-1"]
[ECO "A36"]
[WhiteElo "2125"]
[BlackElo "2473"]
[Annotator "ChessBase"]
[PlyCount "126"]
[EventDate "2018.06.26"]
[EventType "swiss"]
[EventCountry "RUS"]
[SourceTitle "playchess.com"]
[Source "ChessBase"]
[SourceQuality "1"]
[TimeControl "40/5400+30:1800+30"]

1. c4 {[%emt 0:00:00]} g6 {[%emt 0:00:00]} 2. Nc3 {[%emt 0:00:00]} c5 {[%emt 0:00:04]} 3. g3 {[%emt 0:00:19]} Bg7 {[%emt 0:00:06]} 4. Bg2 {[%emt 0:00:07]} Nc6 {[%emt 0:00:06]} 5. e4 {[%emt 0:05:01]} d6 {[%emt 0:01:43]} 6. Nge2 {[%emt 0:00:08]} e6 {[%emt 0:00:11]} 7. O-O {[%emt 0:00:15]} Nge7 {[%emt 0:00:04]} 8. d3 {[%emt 0:00:57]} O-O {[%emt 0:00:09]} 9. a3 {[%emt 0:00:30]} b6 {[%emt 0:00:17]} 10. Rb1 {[%emt 0:00:13]} Bb7 {[%emt 0:00:56]} 11. b4 {[%emt 0:00:54]} Qd7 {[%emt 0:06:03]} 12. Qb3 {[%emt 0:15:32]} Rad8 {[%emt 0:14:59]} 13. Bb2 {[%emt 0:08:49]} Ba8 {[%emt 0:22:42]} 14. Rfd1 {[%emt 0:04:22]} f5 {[%emt 0:05:59]} 15. b5 {[%emt 0:04:22]} Nd4 {[%emt 0:07:22]} 16. Nxd4 {[%emt 0:00:27]} Bxd4 {[%emt 0:00:22]} 17. Ne2 {[%emt 0:00:56]} e5 {[%emt 0:10:46]} 18. Nxd4 {[%emt 0:01:10]} exd4 {[%emt 0:00:01]} 19. f3 {[%emt 0:00:28]} g5 {[%emt 0:02:17]} 20. Bc1 {[%emt 0:04:28]} f4 {[%emt 0:01:13]} 21. Kf2 {[%emt 0:00:32]} Ng6 {[%emt 0:01:44]} 22. Rg1 {[%emt 0:00:59]} Qe6 {[%emt 0:04:09]} 23. Qd1 {[%emt 0:00:58]} Kh8 {[%emt 0:01:39]} 24. Rb2 {[%emt 0:00:23]} g4 {[%emt 0:06:32]} 25. gxf4 {[%emt 0:01:52]} Nxf4 {[%emt 0:00:18]} 26. Bxf4 {[%emt 0:01:27]} Rxf4 {[%emt 0:00:02]} 27. Ke1 {[%emt 0:00:42]} Qh6 {[%emt 0:02:49]} 28. Bh1 {[%emt 0:03:20]} gxf3 {[%emt 0:01:32]} 29. Bxf3 {[%emt 0:03:23]} Rdf8 {[%emt 0:02:12]} 30. Rg3 {[%emt 0:04:17]} Bb7 {[%emt 0:03:10]} 31. Rf2 {[%emt 0:01:02]} Bc8 {[%emt 0:01:06]} 32. Qe2 {[%emt 0:00:50]} Qh4 {[%emt 0:01:34]} 33. Kf1 {[%emt 0:10:41]} Qf6 {[%emt 0:00:17]} 34. Kg1 {[%emt 0:02:34]} h5 {[%emt 0:01:28]} 35. e5 {[%emt 0:04:54]} Qxe5 {[%emt 0:00:52]} 36. Rfg2 {[%emt 0:01:58]} Bg4 {[%emt 0:02:30]} 37. Qd2 {[%emt 0:01:13]} Qe3+ {[%emt 0:00:23]} 38. Qxe3 {[%emt 0:00:07]} dxe3 {[%emt 0:00:01]} 39. Be2 {[%emt 0:00:09]} Bxe2 {[%emt 0:00:05]} 40. Rxe2 {[%emt 0:00:00]} Rf1+ {[%emt 0:00:00]} 41. Kg2 {[%emt 0:00:11]} R1f2+ {[%emt 0:10:55]} 42. Rxf2 {[%emt 0:00:09]} Rxf2+ {[%emt 0:00:18]} 43. Kg1 {[%emt 0:03:04]} Ra2 {[%emt 0:00:32]} 44. Rxe3 {[%emt 0:00:09]} Rxa3 {[%emt 0:00:04]} 45. Kg2 {[%emt 0:00:49]} Kg7 {[%emt 0:00:26]} 46. Kg3 {[%emt 0:00:10]} Ra4 {[%emt 0:14:26]} 47. Kh4 {[%emt 0:10:52]} d5 {[%emt 0:00:10]} 48. Kg5 {[%emt 0:00:56]} Kf7 {[%emt 0:04:38]} 49. h4 {[%emt 0:01:40]} dxc4 {[%emt 0:01:41]} 50. Re4 {[%emt 0:00:02]} a6 {[%emt 0:01:00]} 51. bxa6 {[%emt 0:00:25]} Rxa6 {[%emt 0:00:03]} 52. dxc4 {[%emt 0:00:29]} Ra4 {[%emt 0:00:48]} 53. Rf4+ {[%emt 0:01:18]} Ke7 {[%emt 0:01:04]} 54. Re4+ {[%emt 0:02:37]} Kd6 {[%emt 0:00:55]} 55. Kf5 {[%emt 0:01:48]} Rb4 {[%emt 0:00:24]} 56. Re6+ {[%emt 0:02:43]} Kc7 {[%emt 0:00:27]} 57. Re4 {[%emt 0:00:09]} b5 {[%emt 0:01:20]} 58. cxb5 {[%emt 0:00:46]} Rxe4 {[%emt 0:00:13]} 59. Kxe4 {[%emt 0:00:04]} Kb6 {[%emt 0:00:04]} 60. Kd3 {[%emt 0:00:06]} Kxb5 {[%emt 0:00:16]} 61. Kc3 {[%emt 0:00:04]} Kc6 {[%emt 0:00:14]} 62. Kc4 {[%emt 0:00:11]} Kd6 {[%emt 0:00:05]} 63. Kc3 {[%emt 0:00:10]} Ke5 {[%emt 0:01:27] Kd4+} 0-1

[Event "71st RUS-ch Higher League 2018"]
[Site "Yaroslavl"]
[Date "2018.07.03"]
[Round "7"]
[White "Sjugirov, Sanan"]
[Black "Alekseev, Evgeny"]
[Result "1-0"]
[ECO "C11"]
[WhiteElo "2663"]
[BlackElo "2627"]
[Annotator "ChessBase"]
[PlyCount "67"]
[EventDate "2018.06.26"]
[EventType "swiss"]
[EventCountry "RUS"]
[SourceTitle "playchess.com"]
[Source "ChessBase"]
[SourceQuality "1"]
[TimeControl "40/5400+30:1800+30"]

1. e4 {[%emt 0:01:07]} e6 {[%emt 0:01:47]} 2. d4 {[%emt 0:00:15]} d5 {[%emt 0:00:08]} 3. Nc3 {[%emt 0:00:59]} Nf6 {[%emt 0:03:52]} 4. e5 {[%emt 0:00:12]} Nfd7 {[%emt 0:00:13]} 5. f4 {[%emt 0:00:12]} c5 {[%emt 0:01:02]} 6. Nf3 {[%emt 0:00:19]} Nc6 {[%emt 0:00:51]} 7. Be3 {[%emt 0:00:16]} Be7 {[%emt 0:03:38]} 8. Qd2 {[%emt 0:05:28]} b6 {[%emt 0:04:51]} 9. Bb5 {[%emt 0:05:39]} Bb7 {[%emt 0:02:55]} 10. f5 {[%emt 0:05:10]} a6 {[%emt 0:11:44]} 11. Bxc6 {[%emt 0:01:54]} Bxc6 {[%emt 0:00:27]} 12. fxe6 {[%emt 0:02:09]} fxe6 {[%emt 0:00:24]} 13. Ne2 {[%emt 0:00:23]} Qc7 {[%emt 0:07:52]} 14. Bg5 {[%emt 0:13:44]} Nf8 {[%emt 0:02:26]} 15. O-O {[%emt 0:03:35]} h6 {[%emt 0:05:11]} 16. Bxe7 {[%emt 0:00:55]} Qxe7 {[%emt 0:00:03]} 17. dxc5 {[%emt 0:17:58]} bxc5 {[%emt 0:00:41]} 18. b4 {[%emt 0:00:09]} cxb4 {[%emt 0:03:21]} 19. Nfd4 {[%emt 0:01:09]} Bd7 {[%emt 0:01:39]} 20. Qd3 {[%emt 0:04:55]} Qc5 {[%emt 0:06:12]} 21. Kh1 {[%emt 0:02:04]} Bb5 {[%emt 0:00:35]} 22. Nxb5 {[%emt 0:04:45]} Qxb5 {[%emt 0:01:47]} 23. Qf3 {[%emt 0:06:12]} O-O-O {[%emt 0:06:08]} 24. c3 {[%emt 0:07:34]} Nd7 {[%emt 0:05:14]} 25. Nd4 {[%emt 0:00:04]} Qb6 {[%emt 0:04:38]} 26. Qe3 {[%emt 0:00:50]} Nb8 {[%emt 0:03:12]} 27. cxb4 {[%emt 0:01:33]} Kb7 {[%emt 0:00:32]} 28. Qd3 {[%emt 0:06:10]} Rc8 {[%emt 0:11:50]} 29. b5 {[%emt 0:01:19]} Ka8 {[%emt 0:03:52]} 30. bxa6 {[%emt 0:01:25]} Rc4 {[%emt 0:01:18]} 31. Rfd1 {[%emt 0:02:29]} Rhc8 {[%emt 0:01:32]} 32. Rab1 {[%emt 0:00:38]} Qxa6 {[%emt 0:00:13]} 33. h3 {[%emt 0:02:10]} Nd7 {[%emt 0:02:32]} 34. Nxe6 1-0